[Event "Late-Titled-Tuesday-Blitz-March-19-2024"]
[Site "Chess.com"]
[Date "2024.03.19"]
[Round "2"]
[White "EternalNight8"]
[Black "Janh4"]
[Result "1-0"]
[WhiteElo "2481"]
[BlackElo "2158"]
[TimeControl "180+1"]
[EndTime "14:17:43 PDT"]
[Termination "EternalNight8 won by resignation"]

1. d4 {[%clk 0:03:00.9]} 1... d5 {[%clk 0:02:58.5]} 2. c4 {[%clk 0:03:00.4]}
2... e6 {[%clk 0:02:58.5]} 3. Nf3 {[%clk 0:03:00.9]} 3... h6 {[%clk 0:02:58.8]}
4. g3 {[%clk 0:03:00.2]} 4... Nf6 {[%clk 0:02:58.2]} 5. Bg2 {[%clk 0:03:00.3]}
5... Be7 {[%clk 0:02:58.7]} 6. O-O {[%clk 0:03:00.2]} 6... O-O {[%clk
0:02:58.8]} 7. Nc3 {[%clk 0:02:53.4]} 7... b6 {[%clk 0:02:57.8]} 8. cxd5 {[%clk
0:02:51.9]} 8... exd5 {[%clk 0:02:55]} 9. Qc2 {[%clk 0:02:28.1]} 9... Bb7 {[%clk
0:02:52.1]} 10. Bf4 {[%clk 0:02:15.2]} 10... c5 {[%clk 0:02:36.3]} 11. dxc5
{[%clk 0:01:58.7]} 11... bxc5 {[%clk 0:02:34.2]} 12. Rad1 {[%clk 0:01:58.8]}
12... Qb6 {[%clk 0:02:18.7]} 13. Ne5 {[%clk 0:01:33.3]} 13... Rd8 {[%clk
0:02:07.6]} 14. Nd3 {[%clk 0:01:05.5]} 14... Nbd7 {[%clk 0:01:52.7]} 15. a4
{[%clk 0:00:35.9]} 15... Rac8 {[%clk 0:01:42.9]} 16. h4 {[%clk 0:00:29.7]} 16...
d4 {[%clk 0:01:22.8]} 17. Bxb7 {[%clk 0:00:20.2]} 17... Qxb7 {[%clk 0:01:21.6]}
18. Nb5 {[%clk 0:00:20.6]} 18... Nf8 {[%clk 0:01:03.1]} 19. Ne5 {[%clk
0:00:19.3]} 19... Ne6 {[%clk 0:00:56.8]} 20. Bc1 {[%clk 0:00:17.9]} 20... Nd5
{[%clk 0:00:41.4]} 21. Nc4 {[%clk 0:00:15.4]} 21... Nb4 {[%clk 0:00:35.3]} 22.
Qf5 {[%clk 0:00:14.2]} 22... Rd5 {[%clk 0:00:31.1]} 23. Ne5 {[%clk 0:00:12.5]}
23... Bf6 {[%clk 0:00:25.2]} 24. f4 {[%clk 0:00:10.3]} 24... Bxe5 {[%clk
0:00:11.9]} 25. fxe5 {[%clk 0:00:11.2]} 25... Nc6 {[%clk 0:00:12.1]} 26. Nd6
{[%clk 0:00:10.6]} 26... Qe7 {[%clk 0:00:09.2]} 27. Nxc8 {[%clk 0:00:10.5]}
27... Qc7 {[%clk 0:00:07.2]} 28. Nd6 {[%clk 0:00:10.6]} 28... Qxd6 {[%clk
0:00:07.4]} 29. exd6 {[%clk 0:00:10.5]} 1-0

[Event "Late-Titled-Tuesday-Blitz-March-19-2024"]
[Site "Chess.com"]
[Date "2024.03.19"]
[Round "2"]
[White "Inepton_Fermion"]
[Black "gorgeous1083"]
[Result "1-0"]
[WhiteElo "2466"]
[BlackElo "2058"]
[TimeControl "180+1"]
[EndTime "14:17:46 PDT"]
[Termination "Inepton_Fermion won on time"]

1. Nf3 {[%clk 0:03:00.9]} 1... d5 {[%clk 0:02:59.1]} 2. g3 {[%clk 0:02:59.6]}
2... Nf6 {[%clk 0:02:58.5]} 3. Bg2 {[%clk 0:03:00]} 3... e6 {[%clk 0:02:58.1]}
4. O-O {[%clk 0:03:00.2]} 4... c5 {[%clk 0:02:58.3]} 5. d4 {[%clk 0:02:57.3]}
5... Nc6 {[%clk 0:02:57.5]} 6. c4 {[%clk 0:02:54]} 6... cxd4 {[%clk 0:02:56.5]}
7. Nxd4 {[%clk 0:02:49.3]} 7... Be7 {[%clk 0:02:55.5]} 8. Nc3 {[%clk 0:02:40.6]}
8... O-O {[%clk 0:02:50]} 9. cxd5 {[%clk 0:02:39.4]} 9... exd5 {[%clk
0:02:49.3]} 10. Bg5 {[%clk 0:02:37.2]} 10... Be6 {[%clk 0:02:07.7]} 11. Nxe6
{[%clk 0:02:36.3]} 11... fxe6 {[%clk 0:02:08.6]} 12. Qb3 {[%clk 0:02:22.3]}
12... Nd4 {[%clk 0:01:45.4]} 13. Qa4 {[%clk 0:02:21.3]} 13... Nc6 {[%clk
0:01:25.4]} 14. Rad1 {[%clk 0:02:19.8]} 14... Nd7 {[%clk 0:01:16.9]} 15. Bxe7
{[%clk 0:02:13.8]} 15... Qxe7 {[%clk 0:01:16.4]} 16. Qb3 {[%clk 0:02:11.1]}
16... Nc5 {[%clk 0:01:13]} 17. Qa3 {[%clk 0:02:04.2]} 17... Rac8 {[%clk
0:01:07.9]} 18. Rd2 {[%clk 0:01:25.4]} 18... a6 {[%clk 0:01:06.5]} 19. Rc1
{[%clk 0:01:16.2]} 19... Nd7 {[%clk 0:01:03.8]} 20. Qxe7 {[%clk 0:01:06.5]}
20... Nxe7 {[%clk 0:01:04]} 21. e4 {[%clk 0:01:05.7]} 21... Nf6 {[%clk
0:00:58.3]} 22. Re1 {[%clk 0:01:00.4]} 22... b5 {[%clk 0:00:30.4]} 23. Bh3
{[%clk 0:00:48.7]} 23... Rc6 {[%clk 0:00:23.9]} 24. exd5 {[%clk 0:00:47.9]}
24... Rd6 {[%clk 0:00:03.1]} 25. Rxe6 {[%clk 0:00:46.3]} 25... Rxe6 {[%clk
0:00:02.7]} 26. Bxe6+ {[%clk 0:00:45.9]} 26... Kh8 {[%clk 0:00:03.6]} 27. d6
{[%clk 0:00:44.8]} 27... Nc6 {[%clk 0:00:03.3]} 28. f4 {[%clk 0:00:35]} 28...
Nd8 {[%clk 0:00:02.7]} 29. f5 {[%clk 0:00:29.9]} 29... Re8 {[%clk 0:00:01.8]}
30. Bb3 {[%clk 0:00:19.8]} 1-0

[Event "Late-Titled-Tuesday-Blitz-March-19-2024"]
[Site "Chess.com"]
[Date "2024.03.19"]
[Round "2"]
[White "M1711"]
[Black "Harsha_Bharathakoti"]
[Result "0-1"]
[WhiteElo "2641"]
[BlackElo "2942"]
[TimeControl "180+1"]
[EndTime "14:17:47 PDT"]
[Termination "Harsha_Bharathakoti won on time"]

1. e4 {[%clk 0:03:00.9]} 1... g6 {[%clk 0:02:50.3]} 2. d4 {[%clk 0:02:59.6]}
2... Bg7 {[%clk 0:02:50.7]} 3. Nc3 {[%clk 0:03:00.4]} 3... d6 {[%clk 0:02:50.7]}
4. Be3 {[%clk 0:02:51.8]} 4... a6 {[%clk 0:02:50.2]} 5. h4 {[%clk 0:02:50.7]}
5... h5 {[%clk 0:02:48.8]} 6. Be2 {[%clk 0:02:46.8]} 6... b5 {[%clk 0:02:47.6]}
7. a3 {[%clk 0:02:30.7]} 7... Nf6 {[%clk 0:02:43]} 8. f3 {[%clk 0:02:26.2]} 8...
c6 {[%clk 0:02:35.1]} 9. Nh3 {[%clk 0:02:21.9]} 9... Bxh3 {[%clk 0:02:34.7]} 10.
Rxh3 {[%clk 0:02:22.8]} 10... Nbd7 {[%clk 0:02:33.4]} 11. Qd2 {[%clk 0:02:13.4]}
11... a5 {[%clk 0:02:17.9]} 12. Nd1 {[%clk 0:02:11.8]} 12... O-O {[%clk
0:02:00.3]} 13. Nf2 {[%clk 0:02:11.4]} 13... e5 {[%clk 0:02:01]} 14. Kf1 {[%clk
0:01:58.4]} 14... d5 {[%clk 0:02:00.3]} 15. dxe5 {[%clk 0:01:51.6]} 15... Nxe5
{[%clk 0:02:00.2]} 16. f4 {[%clk 0:01:45.5]} 16... Neg4 {[%clk 0:01:42.5]} 17.
e5 {[%clk 0:01:45.3]} 17... Nxf2 {[%clk 0:01:42.6]} 18. Bxf2 {[%clk 0:01:42.4]}
18... Ne4 {[%clk 0:01:41.7]} 19. Qe1 {[%clk 0:01:37.3]} 19... f6 {[%clk
0:01:38.3]} 20. e6 {[%clk 0:00:59.2]} 20... f5 {[%clk 0:01:36.9]} 21. c3 {[%clk
0:00:49.9]} 21... Re8 {[%clk 0:01:28.2]} 22. Kg1 {[%clk 0:00:48.8]} 22... Rxe6
{[%clk 0:01:27.8]} 23. Qf1 {[%clk 0:00:38.9]} 23... a4 {[%clk 0:01:21.7]} 24.
Bd3 {[%clk 0:00:35.9]} 24... Qd6 {[%clk 0:01:19.8]} 25. Rf3 {[%clk 0:00:28.8]}
25... Rae8 {[%clk 0:01:19.7]} 26. Rd1 {[%clk 0:00:26.8]} 26... Nf6 {[%clk
0:01:02.7]} 27. Bd4 {[%clk 0:00:24.3]} 27... Ng4 {[%clk 0:01:03.2]} 28. Bxg7
{[%clk 0:00:18.5]} 28... Kxg7 {[%clk 0:01:04.1]} 29. g3 {[%clk 0:00:06.7]} 29...
Ne3 {[%clk 0:01:00.8]} 30. Rxe3 {[%clk 0:00:05.3]} 30... Rxe3 {[%clk 0:01:01.7]}
31. Qf2 {[%clk 0:00:05]} 31... Qf6 {[%clk 0:00:54.5]} 32. Kg2 {[%clk 0:00:05]}
32... R8e7 {[%clk 0:00:54.9]} 33. Bf1 {[%clk 0:00:04.2]} 33... Qe6 {[%clk
0:00:53.4]} 34. Bd3 {[%clk 0:00:04.5]} 34... Kh7 {[%clk 0:00:52.8]} 35. Kf1
{[%clk 0:00:04]} 35... d4 {[%clk 0:00:43.2]} 36. cxd4 {[%clk 0:00:04.2]} 36...
Qd5 {[%clk 0:00:44]} 37. Kg1 {[%clk 0:00:04.1]} 37... Qxd4 {[%clk 0:00:44.7]}
38. Be2 {[%clk 0:00:02.5]} 38... Qxb2 {[%clk 0:00:40.3]} 39. Rd7 {[%clk
0:00:02.5]} 39... Qxe2 {[%clk 0:00:36.6]} 40. Qxe2 {[%clk 0:00:01.9]} 40... Rxe2
{[%clk 0:00:36.8]} 0-1

[Event "Late-Titled-Tuesday-Blitz-March-19-2024"]
[Site "Chess.com"]
[Date "2024.03.19"]
[Round "2"]
[White "Byniolus"]
[Black "Rakitic2010"]
[Result "1-0"]
[WhiteElo "2796"]
[BlackElo "2577"]
[TimeControl "180+1"]
[EndTime "14:17:49 PDT"]
[Termination "Byniolus won by resignation"]

1. d4 {[%clk 0:03:00.9]} 1... Nf6 {[%clk 0:02:59.1]} 2. Nf3 {[%clk 0:03:01.1]}
2... e6 {[%clk 0:02:57.6]} 3. Bf4 {[%clk 0:03:01.3]} 3... c5 {[%clk 0:02:56.8]}
4. c3 {[%clk 0:03:01.4]} 4... d5 {[%clk 0:02:56.5]} 5. e3 {[%clk 0:03:01]} 5...
Bd6 {[%clk 0:02:56.5]} 6. Bg3 {[%clk 0:03:01.6]} 6... Qc7 {[%clk 0:02:56.8]} 7.
Nbd2 {[%clk 0:03:01.7]} 7... Nbd7 {[%clk 0:02:56.5]} 8. Be2 {[%clk 0:03:02.4]}
8... O-O {[%clk 0:02:56.6]} 9. c4 {[%clk 0:03:02.9]} 9... e5 {[%clk 0:02:46]}
10. dxe5 {[%clk 0:02:52.9]} 10... Nxe5 {[%clk 0:02:45.3]} 11. cxd5 {[%clk
0:02:51.1]} 11... Nxf3+ {[%clk 0:02:31.4]} 12. Bxf3 {[%clk 0:02:48.4]} 12...
Bxg3 {[%clk 0:02:21.3]} 13. hxg3 {[%clk 0:02:49.3]} 13... Bf5 {[%clk 0:02:21.6]}
14. O-O {[%clk 0:02:46.1]} 14... Rfe8 {[%clk 0:02:18.4]} 15. Re1 {[%clk
0:02:43.8]} 15... Ne4 {[%clk 0:02:09.7]} 16. Nxe4 {[%clk 0:02:37.6]} 16... Bxe4
{[%clk 0:02:10.6]} 17. Qa4 {[%clk 0:02:37.7]} 17... Qe5 {[%clk 0:01:42.7]} 18.
Bxe4 {[%clk 0:02:25.3]} 18... Qxe4 {[%clk 0:01:43.6]} 19. Qxe4 {[%clk
0:02:25.6]} 19... Rxe4 {[%clk 0:01:44.5]} 20. f3 {[%clk 0:02:18.9]} 20... Rb4
{[%clk 0:01:43.1]} 21. b3 {[%clk 0:02:18.9]} 21... Rd8 {[%clk 0:01:42.1]} 22. e4
{[%clk 0:02:15.7]} 22... c4 {[%clk 0:01:41.8]} 23. bxc4 {[%clk 0:02:11.7]} 23...
Rxc4 {[%clk 0:01:41.3]} 24. Rac1 {[%clk 0:01:56.2]} 24... Rdc8 {[%clk
0:01:40.1]} 25. Rxc4 {[%clk 0:01:55.3]} 25... Rxc4 {[%clk 0:01:41]} 26. Re2
{[%clk 0:01:47.5]} 26... Kf8 {[%clk 0:01:39.8]} 27. g4 {[%clk 0:01:47.1]} 27...
Ke7 {[%clk 0:01:38.3]} 28. Kf2 {[%clk 0:01:47.3]} 28... Kd6 {[%clk 0:01:38.5]}
29. Ke3 {[%clk 0:01:45.8]} 29... g5 {[%clk 0:01:37.5]} 30. Re1 {[%clk
0:01:21.5]} 30... Rc2 {[%clk 0:01:34.9]} 31. Rh1 {[%clk 0:01:17]} 31... Rxa2
{[%clk 0:01:03.9]} 32. Rxh7 {[%clk 0:01:17.1]} 32... Ke7 {[%clk 0:01:03.5]} 33.
e5 {[%clk 0:01:14.4]} 33... Ra3+ {[%clk 0:01:02.1]} 34. Ke4 {[%clk 0:01:12.5]}
34... a5 {[%clk 0:00:54.5]} 35. e6 {[%clk 0:01:07.2]} 35... Kd6 {[%clk
0:00:39.1]} 36. Rxf7 {[%clk 0:00:58.1]} 36... Ra1 {[%clk 0:00:20.5]} 37. Rxb7
{[%clk 0:00:50.3]} 37... Re1+ {[%clk 0:00:18.4]} 38. Kf5 {[%clk 0:00:50.2]}
38... Kxd5 {[%clk 0:00:15.7]} 39. Rb5+ {[%clk 0:00:46.2]} 39... Kd6 {[%clk
0:00:14.7]} 40. Rxa5 {[%clk 0:00:46.9]} 40... Ke7 {[%clk 0:00:12.2]} 41. Ra7+
{[%clk 0:00:45.5]} 41... Kd6 {[%clk 0:00:12.7]} 42. Rd7+ {[%clk 0:00:45.4]}
42... Kc6 {[%clk 0:00:12.1]} 43. Rd2 {[%clk 0:00:44.6]} 43... Kc7 {[%clk
0:00:10.9]} 44. Kf6 {[%clk 0:00:44.6]} 44... Re2 {[%clk 0:00:05.3]} 45. Rxe2
{[%clk 0:00:44.2]} 1-0

[Event "Late-Titled-Tuesday-Blitz-March-19-2024"]
[Site "Chess.com"]
[Date "2024.03.19"]
[Round "2"]
[White "iturrizaga"]
[Black "RichardLeyvaP"]
[Result "1-0"]
[WhiteElo "3009"]
[BlackElo "2550"]
[TimeControl "180+1"]
[EndTime "14:17:49 PDT"]
[Termination "iturrizaga won by resignation"]

1. d4 {[%clk 0:02:59.4]} 1... Nf6 {[%clk 0:02:59.4]} 2. Nf3 {[%clk 0:03:00.3]}
2... g6 {[%clk 0:02:59.6]} 3. Bf4 {[%clk 0:03:00.7]} 3... Bg7 {[%clk 0:02:59.7]}
4. e3 {[%clk 0:03:01.2]} 4... d6 {[%clk 0:03:00]} 5. Nbd2 {[%clk 0:03:01.7]}
5... O-O {[%clk 0:03:00.9]} 6. h3 {[%clk 0:03:02.2]} 6... c5 {[%clk 0:03:01.2]}
7. c3 {[%clk 0:03:02.8]} 7... cxd4 {[%clk 0:03:01.4]} 8. exd4 {[%clk 0:03:02.8]}
8... Nc6 {[%clk 0:03:02.3]} 9. Be2 {[%clk 0:03:02]} 9... e5 {[%clk 0:03:00.2]}
10. dxe5 {[%clk 0:03:02.2]} 10... dxe5 {[%clk 0:03:00.5]} 11. Nxe5 {[%clk
0:03:00.7]} 11... Nd5 {[%clk 0:03:00.8]} 12. Nxc6 {[%clk 0:03:01]} 12... bxc6
{[%clk 0:03:01.7]} 13. Bg3 {[%clk 0:03:01.4]} 13... Re8 {[%clk 0:03:02.1]} 14.
O-O {[%clk 0:03:01.6]} 14... Bxc3 {[%clk 0:03:02.2]} 15. Nc4 {[%clk 0:02:59.8]}
15... Bxb2 {[%clk 0:03:01.8]} 16. Nxb2 {[%clk 0:02:33.9]} 16... Nc3 {[%clk
0:03:01.4]} 17. Qxd8 {[%clk 0:02:34.8]} 17... Nxe2+ {[%clk 0:03:01.7]} 18. Kh2
{[%clk 0:02:35.7]} 18... Rxd8 {[%clk 0:03:02.4]} 19. Bh4 {[%clk 0:02:35.7]}
19... Re8 {[%clk 0:02:58]} 20. Nc4 {[%clk 0:02:31.3]} 20... Ba6 {[%clk
0:02:56.6]} 21. Nd6 {[%clk 0:02:31]} 21... Re6 {[%clk 0:02:56.6]} 22. Rfd1
{[%clk 0:02:29.3]} 22... h6 {[%clk 0:02:53.6]} 23. f3 {[%clk 0:02:23.7]} 23...
g5 {[%clk 0:02:53.4]} 24. Bf2 {[%clk 0:02:23.9]} 24... Nf4 {[%clk 0:02:49.2]}
25. Ne4 {[%clk 0:02:20.8]} 25... f5 {[%clk 0:02:40.2]} 26. Ng3 {[%clk
0:02:20.5]} 26... Rf8 {[%clk 0:02:20.4]} 27. Bxa7 {[%clk 0:02:19.5]} 27... Bc4
{[%clk 0:02:19.3]} 28. Bc5 {[%clk 0:02:18.7]} 28... Rf7 {[%clk 0:02:18]} 29. a4
{[%clk 0:02:17.9]} 29... h5 {[%clk 0:02:13.2]} 30. Rd4 {[%clk 0:02:12.7]} 30...
h4 {[%clk 0:01:32.6]} 31. Rxc4 {[%clk 0:01:54.4]} 31... hxg3+ {[%clk 0:01:31.6]}
32. Kh1 {[%clk 0:01:29.1]} 32... Re2 {[%clk 0:01:25.8]} 33. a5 {[%clk
0:01:29.1]} 33... Rxg2 {[%clk 0:01:18.7]} 34. Rxf4 {[%clk 0:01:22.4]} 34... Rh2+
{[%clk 0:01:18.1]} 35. Kg1 {[%clk 0:01:22.9]} 35... gxf4 {[%clk 0:01:18.3]} 36.
a6 {[%clk 0:01:23.8]} 36... Rxh3 {[%clk 0:00:48.2]} 37. a7 {[%clk 0:01:23.4]}
37... Rxa7 {[%clk 0:00:48.3]} 38. Rxa7 {[%clk 0:01:20]} 38... Rh2 {[%clk
0:00:44]} 39. Bd6 {[%clk 0:01:04.6]} 39... Rh4 {[%clk 0:00:22.5]} 40. Rc7 {[%clk
0:00:58.4]} 40... Rh2 {[%clk 0:00:16.7]} 41. Rxc6 {[%clk 0:00:54.9]} 41... Rh6
{[%clk 0:00:14]} 42. Rc8+ {[%clk 0:00:54.6]} 42... Kf7 {[%clk 0:00:13.4]} 43.
Bxf4 {[%clk 0:00:55.5]} 43... Rg6 {[%clk 0:00:12.8]} 44. Rc7+ {[%clk 0:00:55.4]}
44... Ke8 {[%clk 0:00:12.3]} 45. Kg2 {[%clk 0:00:55.1]} 1-0

[Event "Late-Titled-Tuesday-Blitz-March-19-2024"]
[Site "Chess.com"]
[Date "2024.03.19"]
[Round "2"]
[White "TheKnightOfBosnia"]
[Black "KuzubovYuriy"]
[Result "0-1"]
[WhiteElo "2622"]
[BlackElo "2902"]
[TimeControl "180+1"]
[EndTime "14:17:50 PDT"]
[Termination "KuzubovYuriy won on time"]

1. e4 {[%clk 0:03:00.9]} 1... e6 {[%clk 0:02:59.8]} 2. d4 {[%clk 0:03:00.7]}
2... d5 {[%clk 0:03:00.3]} 3. Nd2 {[%clk 0:03:01.4]} 3... Nc6 {[%clk 0:03:00]}
4. c3 {[%clk 0:03:00.1]} 4... e5 {[%clk 0:02:59]} 5. exd5 {[%clk 0:02:51.3]}
5... Qxd5 {[%clk 0:02:59.9]} 6. dxe5 {[%clk 0:02:34]} 6... Nxe5 {[%clk
0:02:50.7]} 7. Ngf3 {[%clk 0:02:32.7]} 7... Nd3+ {[%clk 0:02:33.2]} 8. Bxd3
{[%clk 0:02:30]} 8... Qxd3 {[%clk 0:02:34.1]} 9. Qa4+ {[%clk 0:02:09.5]} 9...
Bd7 {[%clk 0:02:31]} 10. Qb3 {[%clk 0:02:07.7]} 10... O-O-O {[%clk 0:02:18.9]}
11. Qxf7 {[%clk 0:01:34]} 11... Nh6 {[%clk 0:01:18.1]} 12. Qc4 {[%clk
0:00:58.5]} 12... Re8+ {[%clk 0:01:14.4]} 13. Kd1 {[%clk 0:00:59]} 13... Qg6
{[%clk 0:01:04]} 14. Re1 {[%clk 0:00:49.8]} 14... Bd6 {[%clk 0:00:56.9]} 15. Ne4
{[%clk 0:00:45.6]} 15... Ng4 {[%clk 0:00:53.6]} 16. Nfd2 {[%clk 0:00:35.3]}
16... Bf4 {[%clk 0:00:38.1]} 17. f3 {[%clk 0:00:30.4]} 17... Ne3+ {[%clk
0:00:36.4]} 18. Rxe3 {[%clk 0:00:31]} 18... Bxe3 {[%clk 0:00:37.3]} 19. Ng3
{[%clk 0:00:25]} 19... h5 {[%clk 0:00:24.1]} 20. Ndf1 {[%clk 0:00:10.9]} 20...
Bxc1 {[%clk 0:00:23]} 21. Rxc1 {[%clk 0:00:10.5]} 21... h4 {[%clk 0:00:23.6]}
22. Ne4 {[%clk 0:00:07.3]} 22... Bc6 {[%clk 0:00:22.6]} 23. Rc2 {[%clk
0:00:02.9]} 23... Bxe4 {[%clk 0:00:20.9]} 24. fxe4 {[%clk 0:00:03.1]} 24... Rxe4
{[%clk 0:00:21.1]} 25. Qc5 {[%clk 0:00:02.7]} 25... Rd8+ {[%clk 0:00:20.6]} 26.
Rd2 {[%clk 0:00:02.6]} 26... Rd6 {[%clk 0:00:09.8]} 27. Kc2 {[%clk 0:00:01.5]}
27... Re5+ {[%clk 0:00:09.4]} 0-1

[Event "Late-Titled-Tuesday-Blitz-March-19-2024"]
[Site "Chess.com"]
[Date "2024.03.19"]
[Round "2"]
[White "Masterisback04"]
[Black "CheckThis4"]
[Result "1-0"]
[WhiteElo "1940"]
[BlackElo "2680"]
[TimeControl "180+1"]
[EndTime "14:17:50 PDT"]
[Termination "Masterisback04 won by checkmate"]

1. e4 {[%clk 0:03:00.9]} 1... d5 {[%clk 0:02:59.7]} 2. exd5 {[%clk 0:03:00.4]}
2... c6 {[%clk 0:03:00.1]} 3. dxc6 {[%clk 0:02:55.1]} 3... Nxc6 {[%clk 0:03:01]}
4. Nf3 {[%clk 0:02:54.5]} 4... e5 {[%clk 0:03:00.5]} 5. Nc3 {[%clk 0:02:50.9]}
5... Nf6 {[%clk 0:02:59.4]} 6. Bc4 {[%clk 0:02:49.6]} 6... e4 {[%clk 0:02:50.3]}
7. Ng5 {[%clk 0:02:43.3]} 7... Bg4 {[%clk 0:02:29.6]} 8. Be2 {[%clk 0:02:42.9]}
8... Bxe2 {[%clk 0:02:22.3]} 9. Qxe2 {[%clk 0:02:42.4]} 9... Nd4 {[%clk
0:02:21.4]} 10. Qd1 {[%clk 0:02:42]} 10... Qe7 {[%clk 0:02:14.4]} 11. O-O {[%clk
0:02:40.2]} 11... O-O-O {[%clk 0:02:14.3]} 12. Re1 {[%clk 0:02:36.8]} 12... Qc5
{[%clk 0:02:04.7]} 13. Nxf7 {[%clk 0:02:13.1]} 13... Bd6 {[%clk 0:02:01.7]} 14.
Nxd8 {[%clk 0:02:05.7]} 14... Qe5 {[%clk 0:01:48.9]} 15. g3 {[%clk 0:01:54.9]}
15... Rxd8 {[%clk 0:01:48.3]} 16. Nxe4 {[%clk 0:01:29]} 16... Nxe4 {[%clk
0:01:38.1]} 17. Qg4+ {[%clk 0:01:28.2]} 17... Nf5 {[%clk 0:01:07.8]} 18. Rxe4
{[%clk 0:01:11.2]} 18... Qf6 {[%clk 0:01:07.7]} 19. d3 {[%clk 0:01:06.3]} 19...
Rf8 {[%clk 0:01:03.2]} 20. Bf4 {[%clk 0:01:00.8]} 20... Kb8 {[%clk 0:01:02.3]}
21. Bxd6+ {[%clk 0:00:55.6]} 21... Nxd6 {[%clk 0:00:59.9]} 22. Rf4 {[%clk
0:00:45.9]} 22... Qe7 {[%clk 0:00:59.1]} 23. Rxf8+ {[%clk 0:00:44.6]} 23... Qxf8
{[%clk 0:01:00]} 24. Re1 {[%clk 0:00:41.2]} 24... a6 {[%clk 0:00:58.9]} 25. Qf4
{[%clk 0:00:36.8]} 25... Qd8 {[%clk 0:00:55.6]} 26. Re6 {[%clk 0:00:36.2]} 26...
Qa5 {[%clk 0:00:37.3]} 27. Qxd6+ {[%clk 0:00:35.2]} 27... Ka7 {[%clk 0:00:38]}
28. Re5 {[%clk 0:00:27.8]} 28... Qa4 {[%clk 0:00:35]} 29. Qc5+ {[%clk
0:00:27.7]} 29... Kb8 {[%clk 0:00:35]} 30. Rd5 {[%clk 0:00:20.4]} 30... Qe8
{[%clk 0:00:32.9]} 31. Qd6+ {[%clk 0:00:19.9]} 31... Ka7 {[%clk 0:00:32.4]} 32.
Re5 {[%clk 0:00:19.6]} 32... Qa4 {[%clk 0:00:29.5]} 33. b3 {[%clk 0:00:17.8]}
33... Qg4 {[%clk 0:00:11.5]} 34. Qc5+ {[%clk 0:00:16.3]} 34... b6 {[%clk
0:00:11.8]} 35. Re7+ {[%clk 0:00:16.4]} 35... Ka8 {[%clk 0:00:11.8]} 36. Qc6+
{[%clk 0:00:16]} 36... Kb8 {[%clk 0:00:11.4]} 37. Qb7# {[%clk 0:00:16]} 1-0

[Event "Late-Titled-Tuesday-Blitz-March-19-2024"]
[Site "Chess.com"]
[Date "2024.03.19"]
[Round "2"]
[White "NovakRatko"]
[Black "SnekkerAndersen"]
[Result "1/2-1/2"]
[WhiteElo "2417"]
[BlackElo "2715"]
[TimeControl "180+1"]
[EndTime "14:17:51 PDT"]
[Termination "Game drawn - insufficient material"]

1. d4 {[%clk 0:02:09.2]} 1... d5 {[%clk 0:02:59.8]} 2. c4 {[%clk 0:02:09.1]}
2... e6 {[%clk 0:03:00.4]} 3. cxd5 {[%clk 0:02:09.4]} 3... exd5 {[%clk
0:02:57.8]} 4. Nc3 {[%clk 0:02:10.3]} 4... Nf6 {[%clk 0:02:58.1]} 5. Bg5 {[%clk
0:02:09.2]} 5... Be7 {[%clk 0:02:58.2]} 6. e3 {[%clk 0:02:08.7]} 6... c6 {[%clk
0:02:58.7]} 7. Nf3 {[%clk 0:02:08.6]} 7... Nbd7 {[%clk 0:02:59.1]} 8. Bd3 {[%clk
0:02:09.1]} 8... h6 {[%clk 0:02:59.6]} 9. Bh4 {[%clk 0:02:09.2]} 9... Nh5 {[%clk
0:03:00]} 10. Bxe7 {[%clk 0:02:09]} 10... Qxe7 {[%clk 0:03:00.9]} 11. O-O {[%clk
0:02:08.8]} 11... O-O {[%clk 0:02:51.9]} 12. e4 {[%clk 0:02:08.1]} 12... dxe4
{[%clk 0:02:51.4]} 13. Nxe4 {[%clk 0:02:07.5]} 13... Nhf6 {[%clk 0:02:52.1]} 14.
Re1 {[%clk 0:02:07.5]} 14... Nxe4 {[%clk 0:02:51.7]} 15. Bxe4 {[%clk 0:02:07.7]}
15... Qd6 {[%clk 0:02:50.8]} 16. d5 {[%clk 0:02:07.1]} 16... cxd5 {[%clk
0:02:48.7]} 17. Bxd5 {[%clk 0:02:07.2]} 17... Qf6 {[%clk 0:02:46.9]} 18. Qb3
{[%clk 0:02:06]} 18... Nb6 {[%clk 0:02:45.3]} 19. Be4 {[%clk 0:02:03.2]} 19...
Be6 {[%clk 0:02:45.4]} 20. Qb4 {[%clk 0:02:01.9]} 20... Rab8 {[%clk 0:02:36.2]}
21. Rad1 {[%clk 0:01:45.2]} 21... Rfc8 {[%clk 0:02:20.2]} 22. b3 {[%clk
0:01:43.6]} 22... Qc3 {[%clk 0:02:15.1]} 23. Qxc3 {[%clk 0:01:37.7]} 23... Rxc3
{[%clk 0:02:16]} 24. Rc1 {[%clk 0:01:37.2]} 24... Rxc1 {[%clk 0:02:10]} 25. Rxc1
{[%clk 0:01:37]} 25... Bd5 {[%clk 0:02:09.5]} 26. Bxd5 {[%clk 0:01:32.6]} 26...
Nxd5 {[%clk 0:02:10.4]} 27. Rd1 {[%clk 0:01:31.7]} 27... Nc3 {[%clk 0:02:09.6]}
28. Rd2 {[%clk 0:01:30.5]} 28... Re8 {[%clk 0:02:09.1]} 29. Kf1 {[%clk
0:01:22.3]} 29... g5 {[%clk 0:02:07.1]} 30. Rc2 {[%clk 0:01:18.8]} 30... Nd5
{[%clk 0:02:04.4]} 31. g3 {[%clk 0:01:17.1]} 31... Nb4 {[%clk 0:02:02.3]} 32.
Rd2 {[%clk 0:01:16.9]} 32... Re7 {[%clk 0:02:01]} 33. a3 {[%clk 0:01:16.9]}
33... Nc6 {[%clk 0:02:00.1]} 34. b4 {[%clk 0:01:15.5]} 34... a6 {[%clk 0:02:00]}
35. Re2 {[%clk 0:01:15.6]} 35... Rd7 {[%clk 0:02:00.1]} 36. Rd2 {[%clk
0:01:15.5]} 36... Re7 {[%clk 0:02:00.5]} 37. Re2 {[%clk 0:01:15.6]} 37... Rc7
{[%clk 0:02:00.4]} 38. Rc2 {[%clk 0:01:14.7]} 38... Rd7 {[%clk 0:01:59.3]} 39.
Rd2 {[%clk 0:01:14.8]} 39... Rxd2 {[%clk 0:01:56.6]} 40. Nxd2 {[%clk 0:01:15.7]}
40... Nd4 {[%clk 0:01:55.7]} 41. Ne4 {[%clk 0:01:12.5]} 41... Nc2 {[%clk
0:01:50.8]} 42. Nc5 {[%clk 0:01:11.5]} 42... Nxa3 {[%clk 0:01:49.3]} 43. Ke2
{[%clk 0:01:06.3]} 43... Nc2 {[%clk 0:01:44.8]} 44. Nd3 {[%clk 0:01:05]} 44...
Kf8 {[%clk 0:01:39.6]} 45. Kd2 {[%clk 0:01:05.2]} 45... Nd4 {[%clk 0:01:38.8]}
46. Nc5 {[%clk 0:01:05.2]} 46... Nf3+ {[%clk 0:01:34]} 47. Ke3 {[%clk
0:01:04.1]} 47... Nxh2 {[%clk 0:01:34.2]} 48. Nxb7 {[%clk 0:01:04.7]} 48... Ng4+
{[%clk 0:01:32.2]} 49. Ke2 {[%clk 0:01:00.8]} 49... h5 {[%clk 0:01:26.9]} 50.
Nc5 {[%clk 0:01:00.6]} 50... h4 {[%clk 0:01:27.4]} 51. gxh4 {[%clk 0:00:59.1]}
51... gxh4 {[%clk 0:01:28.3]} 52. f3 {[%clk 0:00:57.6]} 52... h3 {[%clk
0:01:22]} 53. Kf1 {[%clk 0:00:57.7]} 53... Ne5 {[%clk 0:01:16.9]} 54. Kf2 {[%clk
0:00:55.9]} 54... Ke7 {[%clk 0:01:12.1]} 55. Kg3 {[%clk 0:00:51.3]} 55... Kd6
{[%clk 0:01:09.6]} 56. f4 {[%clk 0:00:50.4]} 56... Nc6 {[%clk 0:01:07.2]} 57.
Nxa6 {[%clk 0:00:50.3]} 57... Nd4 {[%clk 0:01:00.1]} 58. Kxh3 {[%clk 0:00:48.7]}
58... Kc6 {[%clk 0:01:00.4]} 59. Kg4 {[%clk 0:00:47.5]} 59... Kb5 {[%clk
0:01:00.6]} 60. Nc7+ {[%clk 0:00:47.2]} 60... Kxb4 {[%clk 0:01:00.5]} 61. Kg5
{[%clk 0:00:45.7]} 61... Kc5 {[%clk 0:00:56.5]} 62. Kf6 {[%clk 0:00:45.1]} 62...
Ne2 {[%clk 0:00:57]} 63. f5 {[%clk 0:00:44.1]} 63... Ng3 {[%clk 0:00:57.6]} 64.
Kxf7 {[%clk 0:00:39.3]} 64... Nxf5 {[%clk 0:00:57.8]} 1/2-1/2